[Event "Titled Tuesday Blitz October 5 2021"]
[White "Gontcharov, Vladislav"]
[Black "Yaksin, Oleg"]
[WhiteFideId "4123492"]
[BlackFideId "24105880"]
[WhiteElo "2503"]
[BlackElo "2256"]
[Result "0-1"]
[Round "10"]
[TimeControl "180+1"]
[Date "2021.10.05"]
[WhiteClock "0:00:01"]
[BlackClock "0:00:09"]

1. e4 {[%clk 0:03:00]}  c5 {[%clk 0:02:59]} 2. Nf3 {[%clk 0:03:00]}  d6 {[%clk 0:03:00]} 3. d4 {[%clk 0:03:01]}  cxd4 {[%clk 0:03:01]} 4. Qxd4 {[%clk 0:03:01]}  a6 {[%clk 0:03:00]} 5. c4 {[%clk 0:02:59]}  Nc6 {[%clk 0:03:01]} 6. Qe3 {[%clk 0:02:59]}  g6 {[%clk 0:03:01]} 7. h3 {[%clk 0:02:59]}  Bg7 {[%clk 0:03:01]} 8. Nc3 {[%clk 0:02:59]}  Nf6 {[%clk 0:03:01]} 9. Be2 {[%clk 0:02:59]}  O-O {[%clk 0:03:02]} 10. O-O {[%clk 0:02:59]}  Be6 {[%clk 0:03:01]} 11. Rd1 {[%clk 0:02:52]}  Qa5 {[%clk 0:02:43]} 12. Bd2 {[%clk 0:02:44]}  Rfc8 {[%clk 0:02:37]} 13. Nd5 {[%clk 0:02:35]}  Qd8 {[%clk 0:02:34]} 14. Nb6 {[%clk 0:02:35]}  Nxe4 {[%clk 0:01:56]} 15. Nxa8 {[%clk 0:02:33]}  Nxd2 {[%clk 0:01:54]} 16. Nb6 {[%clk 0:02:26]}  Nxf3+ {[%clk 0:01:52]} 17. Bxf3 {[%clk 0:02:26]}  Rb8 {[%clk 0:01:46]} 18. Bd5 {[%clk 0:02:07]}  Nd4 {[%clk 0:01:14]} 19. Rxd4 {[%clk 0:01:58]}  Qxb6 {[%clk 0:01:13]} 20. Rd2 {[%clk 0:01:54]}  Qxe3 {[%clk 0:01:04]} 21. fxe3 {[%clk 0:01:54]}  Bd7 {[%clk 0:01:01]} 22. Kf2 {[%clk 0:01:49]}  b6 {[%clk 0:01:00]} 23. Rad1 {[%clk 0:01:43]}  a5 {[%clk 0:00:59]} 24. b3 {[%clk 0:01:40]}  Rc8 {[%clk 0:00:59]} 25. Bf3 {[%clk 0:01:34]}  Kf8 {[%clk 0:00:56]} 26. Bg4 {[%clk 0:01:32]}  f5 {[%clk 0:00:52]} 27. Bf3 {[%clk 0:01:32]}  h5 {[%clk 0:00:44]} 28. e4 {[%clk 0:01:29]}  h4 {[%clk 0:00:40]} 29. Rd3 {[%clk 0:01:23]}  Be5 {[%clk 0:00:37]} 30. Ke2 {[%clk 0:01:22]}  Kf7 {[%clk 0:00:33]} 31. Ke3 {[%clk 0:01:17]}  Kf6 {[%clk 0:00:33]} 32. exf5 {[%clk 0:01:16]}  gxf5 {[%clk 0:00:33]} 33. Rf1 {[%clk 0:01:07]}  Rg8 {[%clk 0:00:32]} 34. Ke2 {[%clk 0:01:04]}  Rg5 {[%clk 0:00:31]} 35. Bb7 {[%clk 0:01:03]}  e6 {[%clk 0:00:29]} 36. Bf3 {[%clk 0:01:00]}  Ke7 {[%clk 0:00:29]} 37. Rfd1 {[%clk 0:00:54]}  Be8 {[%clk 0:00:28]} 38. Kf2 {[%clk 0:00:50]}  Rg3 {[%clk 0:00:25]} 39. R1d2 {[%clk 0:00:46]}  Bf4 {[%clk 0:00:21]} 40. Re2 {[%clk 0:00:45]}  e5 {[%clk 0:00:21]} 41. Rd1 {[%clk 0:00:20]}  e4 {[%clk 0:00:18]} 42. Bxe4 {[%clk 0:00:20]}  fxe4 {[%clk 0:00:18]} 43. Rxe4+ {[%clk 0:00:20]}  Be5 {[%clk 0:00:18]} 44. Re3 {[%clk 0:00:20]}  Rg5 {[%clk 0:00:16]} 45. Kf1 {[%clk 0:00:20]}  Bc6 {[%clk 0:00:16]} 46. Re2 {[%clk 0:00:20]}  Ke6 {[%clk 0:00:16]} 47. a3 {[%clk 0:00:19]}  Rf5+ {[%clk 0:00:16]} 48. Kg1 {[%clk 0:00:18]}  Rf4 {[%clk 0:00:16]} 49. Rc1 {[%clk 0:00:16]}  a4 {[%clk 0:00:16]} 50. bxa4 {[%clk 0:00:16]}  Bxa4 {[%clk 0:00:16]} 51. Kh1 {[%clk 0:00:16]}  Bc6 {[%clk 0:00:16]} 52. Rd2 {[%clk 0:00:10]}  Re4 {[%clk 0:00:15]} 53. Rf2 {[%clk 0:00:09]}  Re3 {[%clk 0:00:15]} 54. Rd1 {[%clk 0:00:06]}  Rxh3+ {[%clk 0:00:15]} 55. Kg1 {[%clk 0:00:06]}  Rxa3 {[%clk 0:00:15]} 56. Rf8 {[%clk 0:00:05]}  Rc3 {[%clk 0:00:14]} 57. Rg8 {[%clk 0:00:06]}  Rxc4 {[%clk 0:00:14]} 58. Rg6+ {[%clk 0:00:06]}  Kf7 {[%clk 0:00:14]} 59. Rh6 {[%clk 0:00:06]}  Be4 {[%clk 0:00:11]} 60. Rxh4 {[%clk 0:00:05]}  Ke6 {[%clk 0:00:10]} 61. Re1 {[%clk 0:00:04]}  d5 {[%clk 0:00:10]} 62. Rh6+ {[%clk 0:00:04]}  Kd7 {[%clk 0:00:09]} 63. Rd1 {[%clk 0:00:04]}  Bd4+ {[%clk 0:00:09]} 64. Kf1 {[%clk 0:00:04]}  Bc5 {[%clk 0:00:08]} 65. Rh7+ {[%clk 0:00:04]}  Kc6 {[%clk 0:00:08]} 66. Rh3 {[%clk 0:00:04]}  b5 {[%clk 0:00:08]} 67. Rg3 {[%clk 0:00:04]}  b4 {[%clk 0:00:08]} 68. Rg6+ {[%clk 0:00:04]}  Kb5 {[%clk 0:00:09]} 69. Rg8 {[%clk 0:00:04]}  Rc3 {[%clk 0:00:08]} 70. g4 {[%clk 0:00:04]}  b3 {[%clk 0:00:08]} 71. Rb8+ {[%clk 0:00:03]}  Kc4 {[%clk 0:00:09]} 72. g5 {[%clk 0:00:03]}  Rg3 {[%clk 0:00:09]} 73. Rc1+ {[%clk 0:00:02]}  Bc2 {[%clk 0:00:08]} 74. g6 {[%clk 0:00:02]}  Rxg6 {[%clk 0:00:08]} 75. Ke2 {[%clk 0:00:03]}  Rg2+ {[%clk 0:00:08]} 76. Kf3 {[%clk 0:00:03]}  Rd2 {[%clk 0:00:08]} 77. Rb7 {[%clk 0:00:01]}  Rd3+ {[%clk 0:00:09]} 78. Ke2 {[%clk 0:00:01]}  Rc3 {[%clk 0:00:09]} 0-1


[Site "https://www.chess.com"]

[Event "Titled Tuesday Blitz October 5 2021"]
[White "Guzman Moneo, Alberto"]
[Black "Aloma Vidal, Robert"]
[WhiteFideId "2209616"]
[BlackFideId "2260409"]
[WhiteElo "2157"]
[BlackElo "2435"]
[Result "0-1"]
[Round "10"]
[TimeControl "180+1"]
[Date "2021.10.05"]
[WhiteClock "0:00:05"]
[BlackClock "0:00:16"]

1. d4 {[%clk 0:03:00]}  d5 {[%clk 0:02:57]} 2. Nf3 {[%clk 0:03:00]}  Nf6 {[%clk 0:02:51]} 3. Bf4 {[%clk 0:02:59]}  g6 {[%clk 0:02:45]} 4. e3 {[%clk 0:02:55]}  Bg7 {[%clk 0:02:46]} 5. Be2 {[%clk 0:02:52]}  O-O {[%clk 0:02:46]} 6. Ne5 {[%clk 0:02:52]}  c5 {[%clk 0:02:40]} 7. c3 {[%clk 0:02:52]}  Nc6 {[%clk 0:02:35]} 8. h4 {[%clk 0:02:48]}  h5 {[%clk 0:02:35]} 9. Nd2 {[%clk 0:02:47]}  Nd7 {[%clk 0:02:14]} 10. Nxc6 {[%clk 0:02:36]}  bxc6 {[%clk 0:02:14]} 11. g4 {[%clk 0:02:36]}  hxg4 {[%clk 0:02:13]} 12. Bxg4 {[%clk 0:02:36]}  e5 {[%clk 0:02:13]} 13. dxe5 {[%clk 0:02:34]}  Nxe5 {[%clk 0:02:13]} 14. Bxe5 {[%clk 0:02:31]}  Bxe5 {[%clk 0:02:13]} 15. h5 {[%clk 0:02:31]}  f5 {[%clk 0:01:52]} 16. Be2 {[%clk 0:02:18]}  g5 {[%clk 0:01:52]} 17. h6 {[%clk 0:02:12]}  f4 {[%clk 0:01:41]} 18. Nf3 {[%clk 0:02:04]}  Qf6 {[%clk 0:01:34]} 19. exf4 {[%clk 0:01:53]}  Bxf4 {[%clk 0:01:33]} 20. Qa4 {[%clk 0:01:45]}  g4 {[%clk 0:01:23]} 21. Nd2 {[%clk 0:01:31]}  Re8 {[%clk 0:01:09]} 22. h7+ {[%clk 0:01:10]}  Kh8 {[%clk 0:01:09]} 23. Rg1 {[%clk 0:01:02]}  c4 {[%clk 0:01:01]} 24. Kd1 {[%clk 0:00:48]}  Bd7 {[%clk 0:01:01]} 25. Nf1 {[%clk 0:00:31]}  Bh6 {[%clk 0:00:50]} 26. Rg2 {[%clk 0:00:19]}  Rxe2 {[%clk 0:00:47]} 27. Kxe2 {[%clk 0:00:19]}  Qf3+ {[%clk 0:00:47]} 28. Ke1 {[%clk 0:00:19]}  Re8+ {[%clk 0:00:42]} 29. Ne3 {[%clk 0:00:18]}  Qxg2 {[%clk 0:00:30]} 30. Qxa7 {[%clk 0:00:14]}  Bxe3 {[%clk 0:00:29]} 31. fxe3 {[%clk 0:00:13]}  Bf5 {[%clk 0:00:20]} 32. Qd4+ {[%clk 0:00:12]}  Kxh7 {[%clk 0:00:20]} 33. Rd1 {[%clk 0:00:08]}  Bd3 {[%clk 0:00:18]} 34. Qf4 {[%clk 0:00:05]}  Qe2# {[%clk 0:00:16]} 0-1


[Site "https://www.chess.com"]

[Event "Titled Tuesday Blitz October 5 2021"]
[White "Harshavardhan G B"]
[Black "Salimova, Nurgyul"]
[WhiteFideId "25059009"]
[BlackFideId "2915138"]
[WhiteElo "1825"]
[BlackElo "2071"]
[Result "0-1"]
[Round "10"]
[TimeControl "180+1"]
[Date "2021.10.05"]
[WhiteClock "0:00:01"]
[BlackClock "0:00:31"]

1. Nf3 {[%clk 0:02:48]}  Nf6 {[%clk 0:02:59]} 2. g3 {[%clk 0:02:48]}  g6 {[%clk 0:02:58]} 3. Bg2 {[%clk 0:02:48]}  Bg7 {[%clk 0:02:59]} 4. O-O {[%clk 0:02:48]}  O-O {[%clk 0:03:00]} 5. d3 {[%clk 0:02:46]}  d5 {[%clk 0:03:00]} 6. Nbd2 {[%clk 0:02:47]}  c5 {[%clk 0:02:59]} 7. e4 {[%clk 0:02:46]}  dxe4 {[%clk 0:03:00]} 8. dxe4 {[%clk 0:02:46]}  Nc6 {[%clk 0:03:01]} 9. c3 {[%clk 0:02:40]}  b5 {[%clk 0:02:57]} 10. Qe2 {[%clk 0:02:39]}  c4 {[%clk 0:02:52]} 11. a4 {[%clk 0:02:38]}  Ba6 {[%clk 0:02:48]} 12. b4 {[%clk 0:02:24]}  bxa4 {[%clk 0:02:27]} 13. Rxa4 {[%clk 0:02:01]}  Bb5 {[%clk 0:02:27]} 14. Ra3 {[%clk 0:01:58]}  a5 {[%clk 0:02:23]} 15. bxa5 {[%clk 0:01:57]}  Rxa5 {[%clk 0:02:24]} 16. Nxc4 {[%clk 0:01:48]}  Rxa3 {[%clk 0:02:21]} 17. Bxa3 {[%clk 0:01:49]}  Qa8 {[%clk 0:02:20]} 18. Rb1 {[%clk 0:01:29]}  Qa6 {[%clk 0:01:39]} 19. Bf1 {[%clk 0:01:18]}  Rc8 {[%clk 0:01:35]} 20. e5 {[%clk 0:00:46]}  Bxc4 {[%clk 0:01:20]} 21. Qxc4 {[%clk 0:00:43]}  Qxa3 {[%clk 0:01:19]} 22. exf6 {[%clk 0:00:43]}  Bxf6 {[%clk 0:01:20]} 23. Rb3 {[%clk 0:00:35]}  Qc1 {[%clk 0:01:16]} 24. Kg2 {[%clk 0:00:31]}  Kg7 {[%clk 0:01:15]} 25. Qc5 {[%clk 0:00:26]}  Qd1 {[%clk 0:01:04]} 26. Qb6 {[%clk 0:00:18]}  Rb8 {[%clk 0:01:01]} 27. Qxc6 {[%clk 0:00:16]}  Rxb3 {[%clk 0:00:59]} 28. c4 {[%clk 0:00:16]}  Rb1 {[%clk 0:00:56]} 29. Bd3 {[%clk 0:00:04]}  Qxd3 {[%clk 0:00:54]} 30. g4 {[%clk 0:00:03]}  g5 {[%clk 0:00:42]} 31. h4 {[%clk 0:00:02]}  h6 {[%clk 0:00:39]} 32. hxg5 {[%clk 0:00:02]}  hxg5 {[%clk 0:00:40]} 33. c5 {[%clk 0:00:02]}  Qf1+ {[%clk 0:00:31]} 34. Kg3 {[%clk 0:00:01]}  Rb2 {[%clk 0:00:31]} 0-1


[Site "https://www.chess.com"]

[Event "Titled Tuesday Blitz October 5 2021"]
[White "Isajevsky, Anton"]
[Black "Vifleemskaia, Svetlana"]
[WhiteFideId "4142500"]
[BlackFideId "4129490"]
[WhiteElo "2510"]
[BlackElo "1945"]
[Result "1-0"]
[Round "10"]
[TimeControl "180+1"]
[Date "2021.10.05"]
[WhiteClock "0:00:30"]
[BlackClock "0:01:23"]

1. c4 {[%clk 0:02:49]}  c5 {[%clk 0:02:56]} 2. Nc3 {[%clk 0:02:42]}  Nf6 {[%clk 0:02:55]} 3. Nf3 {[%clk 0:02:42]}  d5 {[%clk 0:02:55]} 4. cxd5 {[%clk 0:02:42]}  Nxd5 {[%clk 0:02:54]} 5. g3 {[%clk 0:02:42]}  Nc6 {[%clk 0:02:53]} 6. Bg2 {[%clk 0:02:42]}  Nc7 {[%clk 0:02:54]} 7. Qa4 {[%clk 0:02:40]}  Bd7 {[%clk 0:02:52]} 8. Qe4 {[%clk 0:02:40]}  e6 {[%clk 0:02:51]} 9. O-O {[%clk 0:02:37]}  Be7 {[%clk 0:02:50]} 10. d4 {[%clk 0:02:24]}  O-O {[%clk 0:02:44]} 11. dxc5 {[%clk 0:02:18]}  Bxc5 {[%clk 0:02:42]} 12. Rd1 {[%clk 0:02:10]}  Qe7 {[%clk 0:02:39]} 13. Bf4 {[%clk 0:02:01]}  Rac8 {[%clk 0:02:34]} 14. Rac1 {[%clk 0:01:38]}  f5 {[%clk 0:02:29]} 15. Qc4 {[%clk 0:01:27]}  h6 {[%clk 0:02:16]} 16. Rxd7 {[%clk 0:01:11]}  Bxf2+ {[%clk 0:02:11]} 17. Kxf2 {[%clk 0:01:12]}  Qxd7 {[%clk 0:02:11]} 18. Rd1 {[%clk 0:01:10]}  Qf7 {[%clk 0:02:06]} 19. Qb3 {[%clk 0:00:52]}  b6 {[%clk 0:02:02]} 20. Rd6 {[%clk 0:00:46]}  Na5 {[%clk 0:01:43]} 21. Qd1 {[%clk 0:00:45]}  Nc4 {[%clk 0:01:41]} 22. Rd7 {[%clk 0:00:45]}  Qf6 {[%clk 0:01:40]} 23. Rxc7 {[%clk 0:00:39]}  Rxc7 {[%clk 0:01:38]} 24. Bxc7 {[%clk 0:00:38]}  Nxb2 {[%clk 0:01:39]} 25. Qd4 {[%clk 0:00:38]}  Qxd4+ {[%clk 0:01:35]} 26. Nxd4 {[%clk 0:00:38]}  Rc8 {[%clk 0:01:35]} 27. Nxe6 {[%clk 0:00:38]}  Kf7 {[%clk 0:01:34]} 28. Bd5 {[%clk 0:00:38]}  Kf6 {[%clk 0:01:34]} 29. e4 {[%clk 0:00:30]}  Nd3+ {[%clk 0:01:25]} 30. Ke3 {[%clk 0:00:30]}  fxe4 {[%clk 0:01:23]} 31. Nxe4+ {[%clk 0:00:30]} 1-0


[Site "https://www.chess.com"]

[Event "Titled Tuesday Blitz October 5 2021"]
[White "Iskusnyh, Sergei"]
[Black "Pichot, Alan"]
[WhiteFideId "4120027"]
[BlackFideId "110973"]
[WhiteElo "2492"]
[BlackElo "2600"]
[Result "0-1"]
[Round "10"]
[TimeControl "180+1"]
[Date "2021.10.05"]
[WhiteClock "0:00:13"]
[BlackClock "0:00:57"]

1. d4 {[%clk 0:03:00]}  Nf6 {[%clk 0:02:59]} 2. c4 {[%clk 0:03:01]}  e6 {[%clk 0:02:59]} 3. g3 {[%clk 0:03:00]}  d5 {[%clk 0:02:58]} 4. Bg2 {[%clk 0:02:59]}  Bb4+ {[%clk 0:02:59]} 5. Nd2 {[%clk 0:02:58]}  O-O {[%clk 0:02:59]} 6. Nf3 {[%clk 0:02:58]}  b6 {[%clk 0:02:55]} 7. O-O {[%clk 0:02:57]}  Bb7 {[%clk 0:02:55]} 8. b3 {[%clk 0:02:57]}  a5 {[%clk 0:02:53]} 9. Bb2 {[%clk 0:02:53]}  Re8 {[%clk 0:02:53]} 10. Qc2 {[%clk 0:02:51]}  Bf8 {[%clk 0:02:48]} 11. Rac1 {[%clk 0:02:42]}  Na6 {[%clk 0:02:46]} 12. Qb1 {[%clk 0:02:39]}  a4 {[%clk 0:02:43]} 13. cxd5 {[%clk 0:02:21]}  a3 {[%clk 0:02:39]} 14. Ba1 {[%clk 0:02:12]}  exd5 {[%clk 0:02:39]} 15. Ne5 {[%clk 0:01:59]}  Nb4 {[%clk 0:02:35]} 16. Rfd1 {[%clk 0:01:52]}  g6 {[%clk 0:02:25]} 17. e3 {[%clk 0:01:40]}  Rc8 {[%clk 0:02:20]} 18. Bh3 {[%clk 0:01:38]}  Rb8 {[%clk 0:02:16]} 19. Bf1 {[%clk 0:01:37]}  Bd6 {[%clk 0:02:06]} 20. Nd3 {[%clk 0:01:28]}  Qd7 {[%clk 0:01:59]} 21. Nxb4 {[%clk 0:01:22]}  Bxb4 {[%clk 0:02:00]} 22. Nf3 {[%clk 0:01:22]}  Ne4 {[%clk 0:01:55]} 23. Qc2 {[%clk 0:01:14]}  Bd6 {[%clk 0:01:52]} 24. Ne5 {[%clk 0:01:11]}  Qe7 {[%clk 0:01:49]} 25. Bg2 {[%clk 0:01:05]}  Rbc8 {[%clk 0:01:40]} 26. Bxe4 {[%clk 0:00:45]}  dxe4 {[%clk 0:01:41]} 27. Nc6 {[%clk 0:00:45]}  Qg5 {[%clk 0:01:26]} 28. d5 {[%clk 0:00:43]}  f6 {[%clk 0:01:24]} 29. Qc3 {[%clk 0:00:40]}  Kf7 {[%clk 0:01:23]} 30. Qc4 {[%clk 0:00:35]}  h5 {[%clk 0:01:21]} 31. Na7 {[%clk 0:00:32]}  h4 {[%clk 0:01:11]} 32. Nxc8 {[%clk 0:00:30]}  Bxc8 {[%clk 0:01:12]} 33. Qe2 {[%clk 0:00:20]}  Bg4 {[%clk 0:01:11]} 34. Qf1 {[%clk 0:00:18]}  hxg3 {[%clk 0:01:09]} 35. fxg3 {[%clk 0:00:17]}  Qxe3+ {[%clk 0:01:07]} 36. Qf2 {[%clk 0:00:18]}  Qxf2+ {[%clk 0:01:06]} 37. Kxf2 {[%clk 0:00:18]}  e3+ {[%clk 0:01:06]} 38. Ke1 {[%clk 0:00:16]}  Rh8 {[%clk 0:01:02]} 39. Rc2 {[%clk 0:00:13]}  Bxg3+ {[%clk 0:00:57]} 0-1


[Site "https://www.chess.com"]

[Event "Titled Tuesday Blitz October 5 2021"]
[White "Jary, Sergey"]
[Black "Langrock, Hannes"]
[WhiteFideId "14110350"]
[BlackFideId "4655290"]
[WhiteElo "2260"]
[BlackElo "2325"]
[Result "1-0"]
[Round "10"]
[TimeControl "180+1"]
[Date "2021.10.05"]
[WhiteClock "0:01:13"]
[BlackClock "0:00:24"]

1. e4 {[%clk 0:02:42]}  c5 {[%clk 0:02:59]} 2. Nf3 {[%clk 0:02:42]}  e6 {[%clk 0:02:59]} 3. c4 {[%clk 0:02:41]}  Nc6 {[%clk 0:02:55]} 4. Nc3 {[%clk 0:02:41]}  Nd4 {[%clk 0:02:55]} 5. Nxd4 {[%clk 0:02:39]}  cxd4 {[%clk 0:02:55]} 6. Nb5 {[%clk 0:02:39]}  e5 {[%clk 0:02:53]} 7. d3 {[%clk 0:02:39]}  a6 {[%clk 0:02:47]} 8. Na3 {[%clk 0:02:39]}  Ne7 {[%clk 0:02:46]} 9. Be2 {[%clk 0:02:36]}  Nc6 {[%clk 0:02:46]} 10. O-O {[%clk 0:02:37]}  Bxa3 {[%clk 0:02:34]} 11. bxa3 {[%clk 0:02:36]}  d6 {[%clk 0:02:35]} 12. Rb1 {[%clk 0:02:31]}  O-O {[%clk 0:02:34]} 13. f4 {[%clk 0:02:25]}  f6 {[%clk 0:02:24]} 14. Bg4 {[%clk 0:02:19]}  Rb8 {[%clk 0:02:18]} 15. a4 {[%clk 0:02:13]}  Bxg4 {[%clk 0:02:00]} 16. Qxg4 {[%clk 0:02:11]}  Qc8 {[%clk 0:02:01]} 17. Qxc8 {[%clk 0:02:03]}  Rfxc8 {[%clk 0:02:00]} 18. Ba3 {[%clk 0:02:04]}  Rd8 {[%clk 0:01:57]} 19. Rb6 {[%clk 0:02:02]}  exf4 {[%clk 0:01:46]} 20. Rxf4 {[%clk 0:01:54]}  Kf7 {[%clk 0:01:43]} 21. Rf1 {[%clk 0:01:50]}  Ke6 {[%clk 0:01:36]} 22. Rfb1 {[%clk 0:01:49]}  Ne5 {[%clk 0:01:34]} 23. R1b3 {[%clk 0:01:48]}  Rd7 {[%clk 0:01:23]} 24. Kf1 {[%clk 0:01:47]}  Rc8 {[%clk 0:01:00]} 25. Ke2 {[%clk 0:01:44]}  Rc6 {[%clk 0:01:01]} 26. Rxb7 {[%clk 0:01:42]}  g5 {[%clk 0:00:54]} 27. R7b6 {[%clk 0:01:30]}  h5 {[%clk 0:00:50]} 28. Rxc6 {[%clk 0:01:27]}  Nxc6 {[%clk 0:00:50]} 29. Rb6 {[%clk 0:01:28]}  Ne5 {[%clk 0:00:50]} 30. a5 {[%clk 0:01:24]}  h4 {[%clk 0:00:43]} 31. h3 {[%clk 0:01:23]}  g4 {[%clk 0:00:40]} 32. hxg4 {[%clk 0:01:21]}  Nxg4 {[%clk 0:00:41]} 33. Rxa6 {[%clk 0:01:21]}  Rb7 {[%clk 0:00:29]} 34. Rxd6+ {[%clk 0:01:20]}  Ke5 {[%clk 0:00:30]} 35. Rb6 {[%clk 0:01:19]}  Rg7 {[%clk 0:00:23]} 36. a6 {[%clk 0:01:16]}  Ne3 {[%clk 0:00:24]} 37. Bd6+ {[%clk 0:01:14]}  Ke6 {[%clk 0:00:24]} 38. Bf8+ {[%clk 0:01:13]} 1-0


[Site "https://www.chess.com"]

[Event "Titled Tuesday Blitz October 5 2021"]
[White "Kanyamarala, Tarun"]
[Black "Do Nascimento,Christian Almeida"]
[WhiteFideId "45004714"]
[BlackFideId "2143801"]
[WhiteElo "2077"]
[BlackElo "2108"]
[Result "1-0"]
[Round "10"]
[TimeControl "180+1"]
[Date "2021.10.05"]
[WhiteClock "0:00:13"]
[BlackClock "0:00:03"]

1. d4 {[%clk 0:03:00]}  c5 {[%clk 0:02:59]} 2. d5 {[%clk 0:02:59]}  Nf6 {[%clk 0:02:59]} 3. Nc3 {[%clk 0:03:00]}  d6 {[%clk 0:02:59]} 4. e4 {[%clk 0:03:00]}  g6 {[%clk 0:03:00]} 5. Bb5+ {[%clk 0:03:01]}  Nbd7 {[%clk 0:02:59]} 6. a4 {[%clk 0:03:01]}  Bg7 {[%clk 0:02:59]} 7. Nf3 {[%clk 0:03:00]}  O-O {[%clk 0:02:59]} 8. O-O {[%clk 0:03:00]}  a6 {[%clk 0:02:59]} 9. Bd3 {[%clk 0:03:00]}  Ng4 {[%clk 0:02:54]} 10. Nd2 {[%clk 0:02:54]}  Nde5 {[%clk 0:02:42]} 11. Be2 {[%clk 0:02:53]}  Nf6 {[%clk 0:02:41]} 12. f4 {[%clk 0:02:49]}  Neg4 {[%clk 0:02:35]} 13. Nc4 {[%clk 0:02:46]}  Rb8 {[%clk 0:02:25]} 14. a5 {[%clk 0:02:30]}  e6 {[%clk 0:02:23]} 15. dxe6 {[%clk 0:02:13]}  Bxe6 {[%clk 0:02:23]} 16. Nxd6 {[%clk 0:02:11]}  Qc7 {[%clk 0:02:05]} 17. e5 {[%clk 0:02:09]}  Rbd8 {[%clk 0:02:00]} 18. h3 {[%clk 0:02:05]}  Nh6 {[%clk 0:01:58]} 19. g4 {[%clk 0:01:56]}  Ne8 {[%clk 0:01:58]} 20. Nce4 {[%clk 0:01:44]}  f5 {[%clk 0:01:53]} 21. Ng5 {[%clk 0:01:41]}  Bf7 {[%clk 0:01:37]} 22. Ngxf7 {[%clk 0:01:35]}  Nxf7 {[%clk 0:01:37]} 23. Nxe8 {[%clk 0:01:29]}  Rfxe8 {[%clk 0:01:31]} 24. Qe1 {[%clk 0:01:29]}  fxg4 {[%clk 0:01:24]} 25. hxg4 {[%clk 0:01:27]}  g5 {[%clk 0:01:25]} 26. Bc4 {[%clk 0:01:26]}  Kh8 {[%clk 0:01:18]} 27. Qe4 {[%clk 0:01:15]}  gxf4 {[%clk 0:01:11]} 28. Bxf4 {[%clk 0:01:02]}  Rd4 {[%clk 0:00:43]} 29. Qe2 {[%clk 0:01:01]}  Nxe5 {[%clk 0:00:31]} 30. Rae1 {[%clk 0:00:59]}  Qd7 {[%clk 0:00:23]} 31. b3 {[%clk 0:00:50]}  h5 {[%clk 0:00:17]} 32. gxh5 {[%clk 0:00:39]}  Qh3 {[%clk 0:00:16]} 33. Qg2 {[%clk 0:00:34]}  Qxh5 {[%clk 0:00:11]} 34. Bg3 {[%clk 0:00:23]}  Rg4 {[%clk 0:00:10]} 35. Re4 {[%clk 0:00:20]}  Qg6 {[%clk 0:00:04]} 36. Qh3+ {[%clk 0:00:19]}  Bh6 {[%clk 0:00:03]} 37. Rxg4 {[%clk 0:00:14]}  Nxg4 {[%clk 0:00:03]} 38. Bf7 {[%clk 0:00:13]} 1-0


[Site "https://www.chess.com"]

[Event "Titled Tuesday Blitz October 5 2021"]
[White "Leitao, Rafael"]
[Black "Aggelis, Nikolaos"]
[WhiteFideId "2101246"]
[BlackFideId "4213220"]
[WhiteElo "2609"]
[BlackElo "2154"]
[Result "0-1"]
[Round "10"]
[TimeControl "180+1"]
[Date "2021.10.05"]
[WhiteClock "0:00:20"]
[BlackClock "0:01:17"]

1. c4 {[%clk 0:03:00]}  Nf6 {[%clk 0:02:59]} 2. Nc3 {[%clk 0:03:00]}  d5 {[%clk 0:02:59]} 3. cxd5 {[%clk 0:02:59]}  Nxd5 {[%clk 0:03:00]} 4. e4 {[%clk 0:02:57]}  Nxc3 {[%clk 0:03:00]} 5. bxc3 {[%clk 0:02:58]}  g6 {[%clk 0:02:59]} 6. Nf3 {[%clk 0:02:54]}  Bg7 {[%clk 0:02:59]} 7. h4 {[%clk 0:02:41]}  O-O {[%clk 0:03:00]} 8. h5 {[%clk 0:02:41]}  c5 {[%clk 0:02:58]} 9. hxg6 {[%clk 0:02:38]}  hxg6 {[%clk 0:02:56]} 10. Bc4 {[%clk 0:02:29]}  Nc6 {[%clk 0:02:54]} 11. Ng5 {[%clk 0:02:11]}  Ne5 {[%clk 0:02:53]} 12. Be2 {[%clk 0:02:00]}  c4 {[%clk 0:02:41]} 13. Ba3 {[%clk 0:01:50]}  Nd3+ {[%clk 0:02:28]} 14. Kf1 {[%clk 0:01:35]}  Qa5 {[%clk 0:02:16]} 15. Bxd3 {[%clk 0:01:33]}  cxd3 {[%clk 0:02:13]} 16. Qf3 {[%clk 0:00:48]}  Qxg5 {[%clk 0:02:03]} 17. Qxd3 {[%clk 0:00:48]}  Be6 {[%clk 0:01:59]} 18. Qe2 {[%clk 0:00:33]}  Rfd8 {[%clk 0:01:56]} 19. d4 {[%clk 0:00:30]}  Rac8 {[%clk 0:01:47]} 20. Qb2 {[%clk 0:00:30]}  Bc4+ {[%clk 0:01:42]} 21. Kg1 {[%clk 0:00:30]}  b5 {[%clk 0:01:40]} 22. Re1 {[%clk 0:00:30]}  a5 {[%clk 0:01:31]} 23. Re3 {[%clk 0:00:25]}  b4 {[%clk 0:01:29]} 24. cxb4 {[%clk 0:00:22]}  Bxd4 {[%clk 0:01:27]} 25. Rg3 {[%clk 0:00:21]}  Qxg3 {[%clk 0:01:23]} 26. Qxd4 {[%clk 0:00:20]}  Rxd4 {[%clk 0:01:17]} 0-1


[Site "https://www.chess.com"]

[Event "Titled Tuesday Blitz October 5 2021"]
[White "Maksimenko, Viktor"]
[Black "Harris, Ian"]
[WhiteFideId "13710478"]
[BlackFideId "2020092"]
[WhiteElo "2269"]
[BlackElo "2356"]
[Result "1-0"]
[Round "10"]
[TimeControl "180+1"]
[Date "2021.10.05"]
[WhiteClock "0:00:16"]
[BlackClock "0:00:01"]

1. d4 {[%clk 0:03:00]}  d5 {[%clk 0:02:47]} 2. c4 {[%clk 0:03:01]}  c6 {[%clk 0:02:47]} 3. Nc3 {[%clk 0:03:01]}  e6 {[%clk 0:02:47]} 4. e3 {[%clk 0:02:57]}  f5 {[%clk 0:02:45]} 5. g3 {[%clk 0:02:50]}  Nf6 {[%clk 0:02:43]} 6. Bg2 {[%clk 0:02:50]}  dxc4 {[%clk 0:02:23]} 7. a4 {[%clk 0:02:47]}  Nd5 {[%clk 0:02:12]} 8. Qe2 {[%clk 0:02:44]}  Nb4 {[%clk 0:02:02]} 9. Nf3 {[%clk 0:02:41]}  Nd3+ {[%clk 0:01:59]} 10. Kd1 {[%clk 0:02:42]}  c5 {[%clk 0:01:46]} 11. Kc2 {[%clk 0:02:25]}  Na6 {[%clk 0:01:37]} 12. Rd1 {[%clk 0:02:22]}  Nab4+ {[%clk 0:01:34]} 13. Kb1 {[%clk 0:02:22]}  cxd4 {[%clk 0:01:20]} 14. exd4 {[%clk 0:02:23]}  Be7 {[%clk 0:01:12]} 15. d5 {[%clk 0:01:46]}  exd5 {[%clk 0:00:58]} 16. Nd4 {[%clk 0:01:46]}  O-O {[%clk 0:00:53]} 17. Ne6 {[%clk 0:01:45]}  Bxe6 {[%clk 0:00:51]} 18. Qxe6+ {[%clk 0:01:46]}  Kh8 {[%clk 0:00:51]} 19. Nxd5 {[%clk 0:01:46]}  Nxd5 {[%clk 0:00:42]} 20. Bxd5 {[%clk 0:01:47]}  Nxc1 {[%clk 0:00:37]} 21. Rxc1 {[%clk 0:01:44]}  Rf6 {[%clk 0:00:25]} 22. Qe5 {[%clk 0:01:44]}  Rd6 {[%clk 0:00:21]} 23. Bxc4 {[%clk 0:01:41]}  Bf6 {[%clk 0:00:21]} 24. Qxf5 {[%clk 0:01:38]}  Rd2 {[%clk 0:00:20]} 25. Ra2 {[%clk 0:01:33]}  Qd4 {[%clk 0:00:17]} 26. Qb5 {[%clk 0:01:22]}  Rxf2 {[%clk 0:00:13]} 27. Bd3 {[%clk 0:01:14]}  Rd2 {[%clk 0:00:11]} 28. Bc2 {[%clk 0:01:13]}  Rc8 {[%clk 0:00:09]} 29. b3 {[%clk 0:00:55]}  b6 {[%clk 0:00:08]} 30. Qf5 {[%clk 0:00:30]}  Rcxc2 {[%clk 0:00:07]} 31. Rcxc2 {[%clk 0:00:21]}  Rd1+ {[%clk 0:00:03]} 32. Rc1 {[%clk 0:00:21]}  Rxc1+ {[%clk 0:00:02]} 33. Kxc1 {[%clk 0:00:21]}  Qe3+ {[%clk 0:00:01]} 34. Kc2 {[%clk 0:00:19]}  Qe2+ {[%clk 0:00:01]} 35. Kc1 {[%clk 0:00:16]} 1-0


[Site "https://www.chess.com"]